fUST/lending_fUST_20250220
["ID","MTS","AMOUNT","RATE_DAILY","PERIOD"]
[353655776,1739983842684,-394.0,0.00015659,2]
[353655777,1739983842694,-394.0,0.00015659,2]
[353655779,1739983842703,-394.0,0.00015659,2]
[353655782,1739983842713,-394.0,0.00015659,2]
[353655783,1739983842723,-394.0,0.00015659,2]
[353655785,1739983842732,-394.0,0.00015659,2]
[353655787,1739983842742,-394.0,0.00015659,2]
[353655789,1739983842752,-394.0,0.00015659,2]
[353655791,1739983842761,-470.0,0.00015661,2]
[353655793,1739983842771,-470.0,0.00015661,2]
[353655795,1739983842780,-470.0,0.00015661,2]
[353655797,1739983842789,-470.0,0.00015661,2]
[353655799,1739983842798,-470.0,0.00015661,2]
[353655801,1739983842807,-470.0,0.00015661,2]
[353655803,1739983842816,-470.0,0.00015661,2]
[353655805,1739983842826,-470.0,0.00015661,2]
[353655807,1739983842835,-470.0,0.00015661,2]
[353655809,1739983842845,-470.0,0.00015661,2]
[353655811,1739983842854,-470.0,0.00015661,2]
[353655813,1739983842864,-470.0,0.00015661,2]
[353655815,1739983842875,-470.0,0.00015661,2]
[353655817,1739983842884,-470.0,0.00015661,2]
[353655819,1739983842895,-5383.3352,0.00015669,2]
[353655821,1739983842904,-394.0,0.00015669,2]
[353655823,1739983842914,-394.0,0.00015669,2]
[353655826,1739983842924,-394.0,0.00015669,2]
[353655828,1739983842933,-394.0,0.00015669,2]
[353655829,1739983842944,-394.0,0.00015669,2]
[353655832,1739983842954,-394.0,0.00015669,2]
[353655834,1739983842963,-394.0,0.00015669,2]
[353655836,1739983842972,-394.0,0.00015669,2]
[353655837,1739983842982,-394.0,0.00015669,2]
[353655839,1739983842992,-394.0,0.00015669,2]
[353655842,1739983843001,-394.0,0.00015669,2]
[353655843,1739983843012,-394.0,0.00015669,2]
[353655845,1739983843023,-394.0,0.00015669,2]
[353655847,1739983843038,-394.0,0.00015669,2]
[353655850,1739983843047,-394.0,0.00015669,2]
[353655851,1739983843057,-2654.76,0.0001567,2]
[353655854,1739983843068,-470.0,0.00015672,2]
[353655856,1739983843078,-470.0,0.00015672,2]
[353655858,1739983843088,-470.0,0.00015672,2]
[353655860,1739983843098,-470.0,0.00015672,2]
[353655862,1739983843109,-470.0,0.00015672,2]
[353655864,1739983843119,-470.0,0.00015672,2]
[353655866,1739983843131,-470.0,0.00015672,2]
[353655868,1739983843140,-470.0,0.00015672,2]
[353655870,1739983843150,-470.0,0.00015672,2]
[353655872,1739983843159,-470.0,0.00015672,2]
[353655883,1739983843252,-470.0,0.00015672,2]
[353655885,1739983843265,-470.0,0.00015672,2]
[353655887,1739983843275,-470.0,0.00015672,2]
[353655889,1739983843284,-470.0,0.00015672,2]
[353655891,1739983843294,-1058.36012519,0.00015702,2]
[353655893,1739983843304,-509.53175985,0.00015719,2]
[353655895,1739983843314,-324.973173,0.00015775,2]
[353655897,1739983843324,-716.08,0.00015786,2]
[353655900,1739983843334,-700.0,0.00015808,2]
[353655902,1739983843344,-509.53175985,0.00015819,2]
[353655904,1739983843353,-259.11098332,0.00015877,2]
[353655906,1739983843363,-509.53175985,0.00015919,2]
[353655908,1739983843373,-509.53175985,0.00016019,2]
[353655910,1739983843383,-1890.60961602,0.000161,2]
[353655912,1739983843392,-509.53175985,0.00016119,2]
[353655914,1739983843401,-154.65899617,0.00016164,2]
[353655916,1739983843411,-500.0,0.00016173,2]
[353655918,1739983843420,-500.0,0.00016173,2]
[353655920,1739983843429,-500.00643651,0.00016173,2]
[353655922,1739983843439,-500.0,0.00016173,2]
[353655924,1739983843448,-160.04038112,0.00016173,2]
[353655926,1739983843458,-59843.7751385,0.000162,2]
[353655928,1739983843468,-59843.77513849,0.000162,2]
[353655930,1739983843478,-59843.77513849,0.000162,2]
[353655932,1739983843487,-509.53175985,0.00016219,2]
[353655934,1739983843498,-509.53175985,0.00016319,2]
[353655936,1739983843509,-9699.40253555,0.00016383,2]
[353655977,1739983843889,-500.0,0.00013778,2]
[353655979,1739983843899,-500.0,0.00013863,2]
[353655981,1739983843908,-500.0,0.00013945,2]
[353655983,1739983843917,-828.29,0.00014272,2]
[353655985,1739983843926,-828.29,0.00014355,2]
[353655987,1739983843935,-828.29,0.00014437,2]
[353655989,1739983843945,-828.29,0.00014519,2]
[353655991,1739983843955,-828.29,0.00014601,2]
[353655993,1739983843964,-828.29,0.00014683,2]
[353655995,1739983843973,-828.29,0.00014766,2]
[353655997,1739983843983,-828.29,0.00014848,2]
[353655999,1739983843992,-828.29,0.0001493,2]
[353656001,1739983844002,-50144.37260294,0.00016383,2]
[353656003,1739983844011,-509.53175985,0.00016419,2]
[353656005,1739983844021,-587.0,0.00016449,2]
[353656007,1739983844033,-154.6337486,0.00016511,2]
[353656009,1739983844043,-509.53175985,0.00016519,2]
[353656011,1739983844052,-509.53175985,0.00016619,2]
[353656012,1739983844061,-259.11098332,0.00016688,2]
[353656014,1739983844072,-509.53175985,0.00016719,2]
[353656016,1739983844081,-151.0,0.000168,2]
[353656018,1739983844091,-509.53175985,0.00016819,2]
[353656020,1739983844100,-509.53175985,0.00016919,2]
[353656022,1739983844110,-509.53175985,0.00017019,2]
[353656024,1739983844121,-151.0,0.000171,2]
[353656027,1739983844131,-509.53175985,0.00017119,2]
[353656028,1739983844140,-700.0,0.00017178,2]
[353656030,1739983844150,-509.53175985,0.00017219,2]
[353656032,1739983844159,-1712.5209726,0.00017247,2]
[353656034,1739983844169,-151.0,0.000173,2]
[353656036,1739983844179,-557.1188801,0.00017305,2]
[353656039,1739983844190,-1114.2377602,0.00017305,2]
[353656041,1739983844199,-557.1188801,0.00017305,2]
[353656043,1739983844209,-557.1188801,0.00017305,2]
[353656045,1739983844218,-557.1188801,0.00017305,2]
[353656047,1739983844227,-557.1188801,0.00017305,2]
[353656048,1739983844236,-557.1188801,0.00017305,2]
[353656050,1739983844246,-557.1188801,0.00017305,2]
[353656052,1739983844255,-557.1188801,0.00017305,2]
[353656054,1739983844264,-557.1188801,0.00017305,2]
[353656056,1739983844274,-557.1188801,0.00017305,2]
[353656058,1739983844284,-557.1188801,0.00017305,2]
[353656060,1739983844293,-557.1188801,0.00017305,2]
[353656062,1739983844304,-773.1005803,0.00017305,2]
[353656064,1739983844314,-557.1188801,0.00017305,2]
[353656067,1739983844325,-557.1188801,0.00017305,2]
[353656069,1739983844335,-557.1188801,0.00017305,2]
[353656071,1739983844346,-557.1188801,0.00017305,2]
[353656073,1739983844355,-557.1188801,0.00017305,2]
[353656075,1739983844365,-557.1188801,0.00017305,2]
[353656077,1739983844375,-557.1188801,0.00017305,2]
[353656079,1739983844384,-557.1188801,0.00017305,2]
[353656081,1739983844394,-509.53175985,0.00017319,2]
[353656083,1739983844403,-509.53175985,0.00017419,2]
[353656085,1739983844411,-13275.53870192,0.00017463,2]
[353656087,1739983844421,-321.0,0.0001749,2]
[353656089,1739983844430,-716.08,0.00017497,2]
[353656091,1739983844439,-3000.0,0.00017498,2]
[353656093,1739983844449,-920.78234098,0.00017498,2]
[353656095,1739983844458,-259.11098332,0.00017498,2]
[353656097,1739983844468,-150.29741089,0.00017498,2]
[353656099,1739983844478,-150.29741089,0.00017498,2]
[353656101,1739983844488,-150.29741089,0.00017498,2]
[353656103,1739983844498,-150.29741089,0.00017498,2]
[353656105,1739983844508,-150.29,0.00017498,2]
[353656107,1739983844517,-151.26363254,0.00017498,2]
[353656109,1739983844527,-151.26363254,0.00017498,2]
[353656111,1739983844536,-151.26363254,0.00017498,2]
[353656113,1739983844545,-151.26363254,0.00017498,2]
[353656115,1739983844554,-151.26363254,0.00017498,2]
[353656117,1739983844564,-151.26363254,0.00017498,2]
[353656119,1739983844573,-151.26363254,0.00017498,2]
[353656121,1739983844583,-151.26363254,0.00017498,2]
[353656123,1739983844592,-151.26363254,0.00017498,2]
[353656125,1739983844601,-151.26363254,0.00017498,2]
[353656127,1739983844611,-151.26363254,0.00017498,2]
[353656129,1739983844620,-151.26,0.00017498,2]
[353656131,1739983844630,-716.08,0.00017499,2]
[353656133,1739983844639,-716.08,0.00017499,2]
[353656135,1739983844649,-716.08,0.00017499,2]
[353656137,1739983844659,-716.08,0.00017499,2]
[353656139,1739983844667,-716.08,0.00017499,2]
[353656141,1739983844676,-716.08,0.00017499,2]
[353656143,1739983844686,-716.08,0.00017499,2]
[353656145,1739983844695,-716.08,0.00017499,2]
[353656147,1739983844704,-716.08,0.00017499,2]
[353656149,1739983844714,-716.08,0.00017499,2]
[353656151,1739983844723,-716.08,0.00017499,2]
[353656153,1739983844733,-716.08,0.00017499,2]
[353656155,1739983844742,-716.08,0.00017499,2]
[353656157,1739983844753,-716.16,0.00017499,2]
[353656159,1739983844762,-167011.05456678,0.00017499,5]
[353656161,1739983844771,-42550.76321166,0.00017499,5]
[353656163,1739983844781,-2500.0,0.000175,2]
[353656165,1739983844790,-59843.77513849,0.000175,2]
[353656167,1739983844799,-1475.44385067,0.000175,2]
[353656169,1739983844809,-115752.21437405,0.000175,2]
[353656171,1739983844819,-121161.15990199,0.000175,2]
[353656173,1739983844828,-509.53175985,0.00017519,2]
[353656175,1739983844838,-500.0,0.00017573,2]
[353656177,1739983844847,-160.0,0.00017597,2]
[353656179,1739983844857,-160.0,0.00017597,2]
[353656181,1739983844867,-2105124.15640107,0.00017598,7]
[353657107,1739984210830,2000.0,0.00019,120]
[353657109,1739984308351,150.0,0.00019,120]
[353657111,1739984482823,1000.0,0.00019,120]
[353657112,1739984483918,1000.0,0.00019,120]
[353657113,1739984484403,328.724514,9.041e-05,2]
[353657154,1739985032096,-300.0,0.00013572,2]
[353657155,1739985032106,-158.47627209,0.00013573,2]
[353657156,1739985032116,-5312.29386998,0.00013573,2]
[353657157,1739985032125,-1890.60961603,0.00013598,2]
[353657158,1739985032134,-500.0,0.00013673,2]
[353657159,1739985032144,-500.0,0.00013673,2]
[353657160,1739985032153,-500.0,0.00013673,2]
[353657161,1739985032162,-478.40162192,0.00013673,2]
[353657162,1739985032182,-21.59837808,0.00013673,2]
[353657163,1739985032191,-500.0,0.00013673,2]
[353657164,1739985032200,-172.74065556,0.0001368,2]
[353657165,1739985032210,-237.98451476,0.00013697,2]
[353657166,1739985032219,-500.0,0.00013697,2]
[353657167,1739985032227,-500.0,0.00013697,2]
[353657168,1739985032237,-67.6764516,0.00013697,2]
[353657169,1739985032248,-338.78436348,0.00013697,2]
[353657170,1739985032257,-500.0,0.00013697,2]
[353657171,1739985032266,-500.0,0.00013697,2]
[353657172,1739985032275,-501.61593999,0.00013697,2]
[353657173,1739985032285,-500.0,0.00013697,2]
[353657174,1739985032294,-588.21072934,0.00013697,2]
[353657175,1739985032303,-500.0,0.00013697,2]
[353657176,1739985032312,-201.40415567,0.00013697,2]
[353657177,1739985032322,-500.0,0.00013697,2]
[353657178,1739985032331,-500.0,0.00013697,2]
[353657179,1739985032341,-237.47374701,0.00013697,2]
[353657181,1739985032350,-208.66939085,0.00013697,2]
[353657183,1739985032360,-201.21821858,0.00013697,2]
[353657185,1739985032369,-238.97832382,0.00013698,2]
[353657187,1739985032378,-500.0,0.00013698,2]
[353657189,1739985032387,-500.0,0.00013698,2]
[353657191,1739985032396,-500.0,0.00013698,2]
[353657192,1739985032405,-502.44826635,0.00013698,2]
[353657194,1739985032415,-500.0,0.00013698,2]
[353657196,1739985032423,-500.0,0.00013698,2]
[353657197,1739985032433,-500.0,0.00013698,2]
[353657198,1739985032443,-501.37008137,0.00013698,2]
[353657199,1739985032452,-329.27031686,0.00013698,2]
[353657200,1739985032462,-500.0,0.00013698,2]
[353657201,1739985032471,-500.0,0.00013698,2]
[353657202,1739985032481,-500.0,0.00013698,2]
[353657203,1739985032491,-500.0,0.00013698,2]
[353657204,1739985032500,-500.0,0.00013698,2]
[353657205,1739985032510,-500.60823648,0.00013698,2]
[353657206,1739985032520,-503.21993236,0.00013698,2]
[353657207,1739985032530,-500.0,0.00013698,2]
[353657208,1739985032539,-501.2450567,0.00013698,2]
[353657209,1739985032548,-500.0,0.00013698,2]
[353657210,1739985032557,-500.0,0.00013698,2]
[353657211,1739985032567,-500.0,0.00013698,2]
[353657212,1739985032577,-501.60734738,0.00013698,2]
[353657213,1739985032586,-501.41932439,0.00013698,2]
[353657214,1739985032595,-500.0,0.00013698,2]
[353657215,1739985032605,-500.0,0.00013698,2]
[353657216,1739985032615,-500.0,0.00013698,2]
[353657217,1739985032625,-502.26226818,0.00013698,2]
[353657218,1739985032635,-500.0,0.00013698,2]
[353657219,1739985032644,-500.0,0.00013698,2]
[353657220,1739985032655,-500.0,0.00013698,2]
[353657221,1739985032665,-500.0,0.00013698,2]
[353657222,1739985032675,-500.0,0.00013698,2]
[353657223,1739985032685,-500.0,0.00013698,2]
[353657224,1739985032695,-500.0,0.00013698,2]
[353657225,1739985032706,-338.91427984,0.00013698,2]
[353657226,1739985032716,-500.0,0.00013698,2]
[353657227,1739985032726,-500.25076003,0.00013698,2]
[353657228,1739985032736,-500.0,0.00013698,2]
[353657229,1739985032746,-322.27929787,0.00013698,2]
[353657230,1739985032757,-502.78716685,0.00013698,2]
[353657231,1739985032767,-500.0,0.00013698,2]
[353657232,1739985032776,-500.0,0.00013698,2]
[353657233,1739985032786,-500.0,0.00013698,2]
[353657234,1739985032798,-500.0,0.00013698,2]
[353657235,1739985032808,-500.0,0.00013698,2]
[353657236,1739985032818,-500.0,0.00013698,2]
[353657237,1739985032828,-500.0,0.00013698,2]
[353657238,1739985032838,-500.0,0.00013698,2]
[353657239,1739985032847,-505.16468955,0.00013698,2]
[353657240,1739985032857,-500.24660952,0.00013698,2]
[353657241,1739985032867,-500.3272342,0.00013698,2]
[353657242,1739985032877,-500.0,0.00013698,2]
[353657243,1739985032887,-500.0,0.00013698,2]
[353657244,1739985032897,-572.66646083,0.00013698,2]
[353657245,1739985032907,-500.44990864,0.00013698,2]
[353657246,1739985032917,-500.0,0.00013698,2]
[353657247,1739985032927,-500.0,0.00013698,2]
[353657248,1739985032936,-500.0,0.00013698,2]
[353657249,1739985032946,-500.0,0.00013698,2]
[353657250,1739985032955,-315.52160722,0.00013698,2]
[353657251,1739985032965,-500.0,0.00013698,2]
[353657252,1739985032975,-500.0,0.00013698,2]
[353657253,1739985032985,-500.0,0.00013698,2]
[353657254,1739985032995,-500.0,0.00013698,2]
[353657255,1739985033004,-500.0,0.00013698,2]
[353657256,1739985033014,-500.0,0.00013698,2]
[353657257,1739985033023,-500.0,0.00013698,2]
[353657258,1739985033034,-524.29,0.00013698,2]
[353657259,1739985033044,-500.0,0.00013698,2]
[353657260,1739985033054,-500.0,0.00013698,2]
[353657261,1739985033065,-500.0,0.00013698,2]
[353657262,1739985033075,-500.0,0.00013698,2]
[353657263,1739985033085,-500.0,0.00013698,2]
[353657264,1739985033095,-500.0,0.00013698,2]
[353657265,1739985033104,-500.0,0.00013698,2]
[353657266,1739985033113,-500.0,0.00013698,2]
[353657267,1739985033123,-500.0,0.00013698,2]
[353657268,1739985033132,-500.0,0.00013698,2]
[353657269,1739985033141,-500.0,0.00013698,2]
[353657270,1739985033151,-500.0,0.00013698,2]
[353657271,1739985033160,-500.0,0.00013698,2]
[353657272,1739985033170,-500.0,0.00013698,2]
[353657273,1739985033179,-500.0,0.00013698,2]
[353657274,1739985033188,-569.61786959,0.00013698,2]
[353657275,1739985033198,-500.0,0.00013698,2]
[353657276,1739985033207,-502.90432688,0.00013698,2]
[353657277,1739985033216,-500.0,0.00013698,2]
[353657278,1739985033226,-500.0,0.00013698,2]
[353657279,1739985033235,-500.0,0.00013698,2]
[353657280,1739985033245,-500.0,0.00013698,2]
[353657281,1739985033254,-500.0,0.00013698,2]
[353657282,1739985033263,-500.0,0.00013698,2]
[353657283,1739985033273,-500.0,0.00013698,2]
[353657284,1739985033283,-500.0,0.00013698,2]
[353657285,1739985033292,-500.0,0.00013698,2]
[353657286,1739985033302,-500.0,0.00013698,2]
[353657287,1739985033312,-478.07642612,0.00013698,2]
[353657288,1739985033322,-405.9037999,0.00013698,2]
[353657289,1739985033333,-500.0,0.00013698,2]
[353657290,1739985033343,-502.15398845,0.00013698,2]
[353657291,1739985033353,-500.0,0.00013698,2]
[353657292,1739985033362,-500.0,0.00013698,2]
[353657293,1739985033372,-500.0,0.00013698,2]
[353657294,1739985033381,-500.0,0.00013698,2]
[353657295,1739985033391,-500.0,0.00013698,2]
[353657296,1739985033400,-500.0,0.00013698,2]
[353657297,1739985033409,-500.0,0.00013698,2]
[353657298,1739985033419,-500.0,0.00013698,2]
[353657299,1739985033429,-500.0,0.00013698,2]
[353657300,1739985033443,-500.0,0.00013698,2]
[353657301,1739985033454,-500.0,0.00013698,2]
[353657302,1739985033464,-500.0,0.00013698,2]
[353657303,1739985033474,-500.0,0.00013698,2]
[353657304,1739985033483,-500.0,0.00013698,2]
[353657305,1739985033493,-500.0,0.00013698,2]
[353657306,1739985033502,-500.0,0.00013698,2]
[353657307,1739985033512,-10.13933751,0.00013698,2]
[353657308,1739985033532,-489.86066249,0.00013698,2]
[353657309,1739985033543,-500.0,0.00013698,2]
[353657310,1739985033553,-226.02,0.00013698,2]
[353657311,1739985033563,-278.26021191,0.00013698,2]
[353657312,1739985033573,-502.2918879,0.00013698,2]
[353657313,1739985033583,-500.0,0.00013698,2]
[353657314,1739985033592,-500.0,0.00013698,2]
[353657315,1739985033602,-500.0,0.00013698,2]
[353657316,1739985033612,-232.2595369,0.00013698,2]
[353657317,1739985033622,-500.0,0.00013698,2]
[353657318,1739985033631,-500.0,0.00013698,2]
[353657319,1739985033641,-500.0,0.00013698,2]
[353657320,1739985033651,-500.0,0.00013698,2]
[353657321,1739985033660,-500.0,0.00013698,2]
[353657322,1739985033670,-500.0,0.00013698,2]
[353657323,1739985033681,-500.0,0.00013698,2]
[353657324,1739985033690,-541.75700999,0.00013698,2]
[353657325,1739985033700,-500.0,0.00013698,2]
[353657326,1739985033711,-511.73609231,0.00013698,2]
[353657327,1739985033722,-199.79,0.00013698,2]
[353657328,1739985033732,-500.0,0.00013698,2]
[353657329,1739985033741,-500.0,0.00013698,2]
[353657330,1739985033751,-500.0,0.00013698,2]
[353657331,1739985033762,-500.0,0.00013698,2]
[353657332,1739985033771,-500.0,0.00013698,2]
[353657333,1739985033782,-500.0,0.00013698,2]
[353657334,1739985033791,-500.11931672,0.00013698,2]
[353657335,1739985033801,-500.0,0.00013698,2]
[353657336,1739985033810,-500.0,0.00013698,2]
[353657337,1739985033820,-500.0,0.00013698,2]
[353657338,1739985033829,-500.0,0.00013698,2]
[353657339,1739985033838,-500.0,0.00013698,2]
[353657340,1739985033849,-500.0,0.00013698,2]
[353657341,1739985033859,-500.0,0.00013698,2]
[353657342,1739985033868,-500.0,0.00013698,2]
[353657343,1739985033972,-500.0,0.00013698,2]
[353657344,1739985033982,-500.0,0.00013698,2]
[353657345,1739985033991,-500.0,0.00013698,2]
[353657346,1739985034000,-501.46590943,0.00013698,2]
[353657347,1739985034010,-500.0,0.00013698,2]
[353657348,1739985034019,-500.0,0.00013698,2]
[353657349,1739985034028,-500.0,0.00013698,2]
[353657350,1739985034037,-500.0,0.00013698,2]
[353657351,1739985034046,-506.59734423,0.00013698,2]
[353657352,1739985034055,-500.0,0.00013698,2]
[353657353,1739985034065,-500.0,0.00013698,2]
[353657354,1739985034074,-500.0,0.00013698,2]
[353657355,1739985034083,-500.0,0.00013698,2]
[353657356,1739985034091,-500.0,0.00013698,2]
[353657357,1739985034101,-500.0,0.00013698,2]
[353657358,1739985034110,-500.0,0.00013698,2]
[353657359,1739985034119,-500.0,0.00013698,2]
[353657360,1739985034128,-284.12821565,0.00013698,2]
[353657361,1739985034138,-500.0,0.00013698,2]
[353657362,1739985034147,-500.0,0.00013698,2]
[353657363,1739985034157,-500.0,0.00013698,2]
[353657364,1739985034167,-500.0,0.00013698,2]
[353657365,1739985034177,-494.54382089,0.00013698,2]
[353657366,1739985034187,-500.0,0.00013698,2]
[353657367,1739985034198,-171.69741643,0.00013698,2]
[353657368,1739985034207,-502.05208065,0.00013698,2]
[353657369,1739985034217,-500.0,0.00013698,2]
[353657370,1739985034226,-500.0,0.00013698,2]
[353657371,1739985034236,-500.0,0.00013698,2]
[353657372,1739985034246,-500.0,0.00013698,2]
[353657373,1739985034255,-500.0,0.00013698,2]
[353657374,1739985034265,-500.0,0.00013698,2]
[353657375,1739985034275,-500.0,0.00013698,2]
[353657376,1739985034284,-514.44279323,0.00013698,2]
[353657377,1739985034294,-500.0,0.00013698,2]
[353657378,1739985034303,-500.0,0.00013698,2]
[353657379,1739985034315,-500.0,0.00013698,2]
[353657380,1739985034325,-500.0,0.00013698,2]
[353657381,1739985034334,-500.0,0.00013698,2]
[353657382,1739985034343,-500.0,0.00013698,2]
[353657383,1739985034354,-500.0,0.00013698,2]
[353657384,1739985034364,-500.0,0.00013698,2]
[353657385,1739985034375,-500.0,0.00013698,2]
[353657386,1739985034385,-500.0,0.00013698,2]
[353657387,1739985034396,-500.0,0.00013698,2]
[353657388,1739985034405,-500.0,0.00013698,2]
[353657389,1739985034415,-500.0,0.00013698,2]
[353657390,1739985034425,-500.0,0.00013698,2]
[353657391,1739985034437,-500.0,0.00013698,2]
[353657392,1739985034448,-500.0,0.00013698,2]
[353657393,1739985034457,-501.0114083,0.00013698,2]
[353657394,1739985034467,-500.0,0.00013698,2]
[353657395,1739985034478,-501.95508958,0.00013698,2]
[353657396,1739985034487,-500.0,0.00013698,2]
[353657397,1739985034498,-500.0,0.00013698,2]
[353657398,1739985034508,-500.0,0.00013698,2]
[353657399,1739985034520,-500.0,0.00013698,2]
[353657400,1739985034530,-500.0,0.00013698,2]
[353657401,1739985034540,-500.0,0.00013698,2]
[353657402,1739985034550,-500.0,0.00013698,2]
[353657403,1739985034561,-500.0,0.00013698,2]
[353657404,1739985034571,-500.0,0.00013698,2]
[353657405,1739985034581,-500.0,0.00013698,2]
[353657406,1739985034591,-500.0,0.00013698,2]
[353657407,1739985034600,-500.0,0.00013698,2]
[353657408,1739985034610,-500.0,0.00013698,2]
[353657409,1739985034619,-500.0,0.00013698,2]
[353657410,1739985034629,-500.0,0.00013698,2]
[353657411,1739985034639,-500.0,0.00013698,2]
[353657412,1739985034648,-500.0,0.00013698,2]
[353657413,1739985034657,-500.0,0.00013698,2]
[353657414,1739985034666,-500.0,0.00013698,2]
[353657415,1739985034675,-500.0,0.00013698,2]
[353657416,1739985034683,-500.0,0.00013698,2]
[353657417,1739985034692,-500.0,0.00013698,2]
[353657418,1739985034702,-500.0,0.00013698,2]
[353657419,1739985034711,-500.0,0.00013698,2]
[353657420,1739985034719,-500.0,0.00013698,2]
[353657421,1739985034728,-500.0,0.00013698,2]
[353657422,1739985034737,-500.0,0.00013698,2]
[353657423,1739985034746,-546.02876234,0.00013698,2]
[353657424,1739985034755,-500.0,0.00013698,2]
[353657425,1739985034765,-500.0,0.00013698,2]
[353657426,1739985034774,-500.0,0.00013698,2]
[353657427,1739985034783,-375.08273519,0.00013698,2]
[353657428,1739985034792,-500.0,0.00013698,2]
[353657429,1739985034801,-500.0,0.00013698,2]
[353657430,1739985034811,-500.0,0.00013698,2]
[353657431,1739985034820,-500.0,0.00013698,2]
[353657432,1739985034829,-500.0,0.00013698,2]
[353657433,1739985034839,-500.0,0.00013698,2]
[353657434,1739985034848,-500.0,0.00013698,2]
[353657435,1739985034857,-500.0,0.00013698,2]
[353657436,1739985034867,-500.0,0.00013698,2]
[353657437,1739985034876,-500.0,0.00013698,2]
[353657438,1739985034885,-500.63832437,0.00013698,2]
[353657439,1739985034895,-500.16462256,0.00013698,2]
[353657440,1739985034905,-500.0,0.00013698,2]
[353657441,1739985034914,-500.0,0.00013698,2]
[353657442,1739985034924,-500.0,0.00013698,2]
[353657443,1739985034934,-500.0,0.00013698,2]
[353657444,1739985034943,-500.0,0.00013698,2]
[353657445,1739985034952,-500.0,0.00013698,2]
[353657446,1739985034962,-500.0,0.00013698,2]
[353657447,1739985034971,-500.0,0.00013698,2]
[353657448,1739985034981,-500.0,0.00013698,2]
[353657449,1739985034990,-500.4617619,0.00013698,2]
[353657450,1739985035006,-500.0,0.00013698,2]
[353657451,1739985035016,-500.0,0.00013698,2]
[353657452,1739985035025,-504.62293086,0.00013698,2]
[353657453,1739985035035,-648.71,0.00013698,2]
[353657454,1739985035045,-500.0,0.00013698,2]
[353657455,1739985035054,-500.0,0.00013698,2]
[353657456,1739985035064,-500.0,0.00013698,2]
[353657457,1739985035073,-500.0,0.00013698,2]
[353657458,1739985035083,-500.0,0.00013698,2]
[353657459,1739985035093,-500.0,0.00013698,2]
[353657460,1739985035102,-500.0,0.00013698,2]
[353657461,1739985035111,-500.0,0.00013698,2]
[353657462,1739985035120,-500.0,0.00013698,2]
[353657463,1739985035129,-500.0,0.00013698,2]
[353657464,1739985035138,-500.58453299,0.00013698,2]
[353657465,1739985035147,-500.0,0.00013698,2]
[353657466,1739985035157,-500.00000001,0.00013698,2]
[353657467,1739985035166,-500.0,0.00013698,2]
[353657468,1739985035175,-500.0,0.00013698,2]
[353657469,1739985035184,-503.03152377,0.00013698,2]
[353657470,1739985035192,-500.0,0.00013698,2]
[353657471,1739985035201,-500.0,0.00013698,2]
[353657472,1739985035210,-500.0,0.00013698,2]
[353657473,1739985035218,-500.0,0.00013698,2]
[353657474,1739985035227,-500.0,0.00013698,2]
[353657475,1739985035236,-500.0,0.00013698,2]
[353657476,1739985035245,-500.0,0.00013698,2]
[353657477,1739985035254,-500.0,0.00013698,2]